[Event "Titled Tuesday Blitz May 9 Early 2023"]
[White "Demchenko, Anton"]
[Black "Donchenko, Alexander"]
[WhiteFideId "4160258"]
[BlackFideId "24603295"]
[WhiteElo "2545"]
[BlackElo "2554"]
[Result "0-1"]
[Round "10"]
[TimeControl "180+2"]
[Date "2023.05.09"]
[WhiteClock "0:00:01"]
[BlackClock "0:00:15"]

1. e4 {[%clk 0:03:00]}  c5 {[%clk 0:03:00]} 2. Nc3 {[%clk 0:03:01]}  Nc6 {[%clk 0:02:59]} 3. Bb5 {[%clk 0:03:00]}  Nd4 {[%clk 0:02:59]} 4. a4 {[%clk 0:03:01]}  g6 {[%clk 0:02:57]} 5. Nf3 {[%clk 0:03:01]}  Bg7 {[%clk 0:02:57]} 6. d3 {[%clk 0:03:01]}  e6 {[%clk 0:02:47]} 7. Bf4 {[%clk 0:02:53]}  Qe7 {[%clk 0:02:34]} 8. O-O {[%clk 0:02:47]}  Nf6 {[%clk 0:02:29]} 9. Bc4 {[%clk 0:02:35]}  O-O {[%clk 0:02:26]} 10. Re1 {[%clk 0:02:08]}  b6 {[%clk 0:02:17]} 11. Nb5 {[%clk 0:01:53]}  Nxf3+ {[%clk 0:01:52]} 12. Qxf3 {[%clk 0:01:52]}  Ne8 {[%clk 0:01:52]} 13. Qg3 {[%clk 0:01:44]}  Bb7 {[%clk 0:01:29]} 14. e5 {[%clk 0:01:05]}  a6 {[%clk 0:01:20]} 15. Nd6 {[%clk 0:01:06]}  Nxd6 {[%clk 0:01:19]} 16. exd6 {[%clk 0:01:07]}  Qd8 {[%clk 0:01:11]} 17. c3 {[%clk 0:01:03]}  Bc6 {[%clk 0:01:05]} 18. Bb3 {[%clk 0:01:02]}  b5 {[%clk 0:01:04]} 19. axb5 {[%clk 0:00:56]}  axb5 {[%clk 0:01:04]} 20. Rad1 {[%clk 0:00:57]}  b4 {[%clk 0:01:00]} 21. Be5 {[%clk 0:00:54]}  bxc3 {[%clk 0:00:59]} 22. bxc3 {[%clk 0:00:52]}  Ra3 {[%clk 0:00:56]} 23. Bxg7 {[%clk 0:00:35]}  Kxg7 {[%clk 0:00:57]} 24. Bc4 {[%clk 0:00:35]}  Qf6 {[%clk 0:00:54]} 25. Qe3 {[%clk 0:00:29]}  Rxc3 {[%clk 0:00:43]} 26. Qxc5 {[%clk 0:00:28]}  Rb8 {[%clk 0:00:41]} 27. h3 {[%clk 0:00:21]}  Rb2 {[%clk 0:00:40]} 28. Rb1 {[%clk 0:00:19]}  Rcc2 {[%clk 0:00:34]} 29. Rxb2 {[%clk 0:00:18]}  Qxb2 {[%clk 0:00:34]} 30. Qe3 {[%clk 0:00:16]}  h5 {[%clk 0:00:31]} 31. Qg3 {[%clk 0:00:14]}  Qd4 {[%clk 0:00:30]} 32. Qe5+ {[%clk 0:00:08]}  Qxe5 {[%clk 0:00:30]} 33. Rxe5 {[%clk 0:00:09]}  Kf6 {[%clk 0:00:27]} 34. Ra5 {[%clk 0:00:09]}  Rc1+ {[%clk 0:00:22]} 35. Kh2 {[%clk 0:00:08]}  Rf1 {[%clk 0:00:22]} 36. Ra2 {[%clk 0:00:06]}  h4 {[%clk 0:00:21]} 37. f3 {[%clk 0:00:05]}  Ke5 {[%clk 0:00:21]} 38. Ra7 {[%clk 0:00:02]}  Kxd6 {[%clk 0:00:20]} 39. Ra2 {[%clk 0:00:02]}  Rc1 {[%clk 0:00:20]} 40. Re2 {[%clk 0:00:02]}  Kc5 {[%clk 0:00:17]} 41. Re5+ {[%clk 0:00:01]}  Kd4 {[%clk 0:00:17]} 42. Rg5 {[%clk 0:00:01]}  d5 {[%clk 0:00:15]} 43. Rg4+ {[%clk 0:00:02]}  Ke3 {[%clk 0:00:16]} 44. Ba6 {[%clk 0:00:02]}  Ra1 {[%clk 0:00:14]} 45. Bc8 {[%clk 0:00:01]}  Ra8 {[%clk 0:00:14]} 46. Bxe6 {[%clk 0:00:01]}  fxe6 {[%clk 0:00:15]} 47. Rxg6 {[%clk 0:00:02]}  Bd7 {[%clk 0:00:14]} 48. Rg7 {[%clk 0:00:01]}  Rd8 {[%clk 0:00:14]} 49. Rh7 {[%clk 0:00:01]}  Kxd3 {[%clk 0:00:14]} 50. Rxh4 {[%clk 0:00:02]}  d4 {[%clk 0:00:15]} 51. Kg3 {[%clk 0:00:03]}  Kc3 {[%clk 0:00:15]} 52. Rh6 {[%clk 0:00:02]}  d3 {[%clk 0:00:15]} 53. Kf2 {[%clk 0:00:01]}  d2 {[%clk 0:00:15]} 0-1


[Site "https://www.chess.com"]

[Event "Titled Tuesday Blitz May 9 Early 2023"]
[White "Ibarra Jerez, Jose Carlos"]
[Black "Seemann, Jakub"]
[WhiteFideId "2226332"]
[BlackFideId "21874697"]
[WhiteElo "2638"]
[BlackElo "2364"]
[Result "1/2-1/2"]
[Round "10"]
[TimeControl "180+2"]
[Date "2023.05.09"]
[WhiteClock "0:00:05"]
[BlackClock "0:00:08"]

1. e4 {[%clk 0:03:00]}  c6 {[%clk 0:02:59]} 2. Nf3 {[%clk 0:03:00]}  d5 {[%clk 0:03:00]} 3. d3 {[%clk 0:03:01]}  Qc7 {[%clk 0:02:58]} 4. exd5 {[%clk 0:03:00]}  cxd5 {[%clk 0:02:59]} 5. c4 {[%clk 0:03:01]}  Nf6 {[%clk 0:02:56]} 6. Nc3 {[%clk 0:02:59]}  e6 {[%clk 0:02:55]} 7. a3 {[%clk 0:02:58]}  Be7 {[%clk 0:02:54]} 8. g3 {[%clk 0:02:58]}  O-O {[%clk 0:02:54]} 9. Qe2 {[%clk 0:02:57]}  Nc6 {[%clk 0:02:55]} 10. Bg2 {[%clk 0:02:55]}  a6 {[%clk 0:02:55]} 11. O-O {[%clk 0:02:54]}  dxc4 {[%clk 0:02:52]} 12. dxc4 {[%clk 0:02:54]}  e5 {[%clk 0:02:51]} 13. Re1 {[%clk 0:02:45]}  Bg4 {[%clk 0:02:45]} 14. Qe3 {[%clk 0:02:32]}  Bxf3 {[%clk 0:02:33]} 15. Qxf3 {[%clk 0:02:31]}  Nd4 {[%clk 0:02:28]} 16. Qxb7 {[%clk 0:01:37]}  Qxb7 {[%clk 0:02:28]} 17. Bxb7 {[%clk 0:01:38]}  Rab8 {[%clk 0:02:28]} 18. Be4 {[%clk 0:01:38]}  Nxe4 {[%clk 0:02:28]} 19. Rxe4 {[%clk 0:01:39]}  Nb3 {[%clk 0:02:29]} 20. Rb1 {[%clk 0:01:36]}  Nxc1 {[%clk 0:02:29]} 21. Rxc1 {[%clk 0:01:23]}  Rxb2 {[%clk 0:02:29]} 22. Rxe5 {[%clk 0:01:18]}  Bxa3 {[%clk 0:02:24]} 23. Ra1 {[%clk 0:01:18]}  Bb4 {[%clk 0:02:20]} 24. Nd5 {[%clk 0:01:18]}  a5 {[%clk 0:02:15]} 25. Ra4 {[%clk 0:01:03]}  g6 {[%clk 0:01:59]} 26. Kg2 {[%clk 0:00:57]}  Kg7 {[%clk 0:01:59]} 27. Nxb4 {[%clk 0:00:43]}  axb4 {[%clk 0:02:00]} 28. Rc5 {[%clk 0:00:40]}  Re8 {[%clk 0:01:54]} 29. Kf3 {[%clk 0:00:25]}  Ree2 {[%clk 0:01:53]} 30. Rxb4 {[%clk 0:00:26]}  Rxf2+ {[%clk 0:01:53]} 31. Ke3 {[%clk 0:00:26]}  Rbe2+ {[%clk 0:01:31]} 32. Kd3 {[%clk 0:00:24]}  Re8 {[%clk 0:01:31]} 33. Rb7 {[%clk 0:00:19]}  Rxh2 {[%clk 0:01:29]} 34. Rcc7 {[%clk 0:00:20]}  Rf2 {[%clk 0:01:29]} 35. c5 {[%clk 0:00:19]}  Rf6 {[%clk 0:01:10]} 36. Kc4 {[%clk 0:00:15]}  h5 {[%clk 0:01:07]} 37. Re7 {[%clk 0:00:15]}  Rc8 {[%clk 0:00:57]} 38. Rbc7 {[%clk 0:00:15]}  Rxc7 {[%clk 0:00:56]} 39. Rxc7 {[%clk 0:00:16]}  Rf3 {[%clk 0:00:56]} 40. c6 {[%clk 0:00:13]}  Rxg3 {[%clk 0:00:56]} 41. Rd7 {[%clk 0:00:14]}  Rg1 {[%clk 0:00:56]} 42. Rd3 {[%clk 0:00:12]}  Rg4+ {[%clk 0:00:17]} 43. Kb5 {[%clk 0:00:07]}  Rg1 {[%clk 0:00:17]} 44. Rc3 {[%clk 0:00:05]}  Rb1+ {[%clk 0:00:17]} 45. Ka6 {[%clk 0:00:06]}  Rb8 {[%clk 0:00:18]} 46. c7 {[%clk 0:00:06]}  Re8 {[%clk 0:00:18]} 47. c8=Q {[%clk 0:00:04]}  Rxc8 {[%clk 0:00:18]} 48. Rxc8 {[%clk 0:00:05]}  g5 {[%clk 0:00:16]} 49. Kb5 {[%clk 0:00:05]}  h4 {[%clk 0:00:16]} 50. Kc4 {[%clk 0:00:06]}  Kg6 {[%clk 0:00:17]} 51. Kd3 {[%clk 0:00:06]}  Kf5 {[%clk 0:00:17]} 52. Ke3 {[%clk 0:00:06]}  Kg4 {[%clk 0:00:18]} 53. Kf2 {[%clk 0:00:06]}  f5 {[%clk 0:00:18]} 54. Rc4+ {[%clk 0:00:05]}  Kh3 {[%clk 0:00:15]} 55. Rc5 {[%clk 0:00:05]}  g4 {[%clk 0:00:11]} 56. Rxf5 {[%clk 0:00:04]}  Kh2 {[%clk 0:00:12]} 57. Rh5 {[%clk 0:00:03]}  g3+ {[%clk 0:00:10]} 58. Kf3 {[%clk 0:00:03]}  h3 {[%clk 0:00:10]} 59. Rg5 {[%clk 0:00:04]}  g2 {[%clk 0:00:08]} 60. Kf2 {[%clk 0:00:04]}  g1=Q+ {[%clk 0:00:08]} 61. Rxg1 {[%clk 0:00:05]} 1/2-1/2


[Site "https://www.chess.com"]

[Event "Titled Tuesday Blitz May 9 Early 2023"]
[White "Averjanov, Alexey"]
[Black "Adhiban, B."]
[WhiteFideId "14109867"]
[BlackFideId "5018471"]
[WhiteElo "2713"]
[BlackElo "2587"]
[Result "1/2-1/2"]
[Round "10"]
[TimeControl "180+2"]
[Date "2023.05.09"]
[WhiteClock "0:00:34"]
[BlackClock "0:00:35"]

1. d4 {[%clk 0:03:00]}  e6 {[%clk 0:02:57]} 2. c4 {[%clk 0:03:00]}  c5 {[%clk 0:02:57]} 3. Nf3 {[%clk 0:03:01]}  cxd4 {[%clk 0:02:57]} 4. Nxd4 {[%clk 0:03:01]}  Nf6 {[%clk 0:02:57]} 5. g3 {[%clk 0:03:01]}  Bb4+ {[%clk 0:02:55]} 6. Bd2 {[%clk 0:03:01]}  Bc5 {[%clk 0:02:56]} 7. Nb3 {[%clk 0:03:01]}  Bb6 {[%clk 0:02:54]} 8. Bg2 {[%clk 0:02:54]}  Nc6 {[%clk 0:02:54]} 9. O-O {[%clk 0:02:54]}  h5 {[%clk 0:02:53]} 10. h4 {[%clk 0:02:53]}  Ng4 {[%clk 0:02:51]} 11. c5 {[%clk 0:02:48]}  Bc7 {[%clk 0:02:51]} 12. Nc3 {[%clk 0:02:48]}  b6 {[%clk 0:02:50]} 13. Nb5 {[%clk 0:02:45]}  Be5 {[%clk 0:02:47]} 14. Nd6+ {[%clk 0:02:40]}  Bxd6 {[%clk 0:02:47]} 15. cxd6 {[%clk 0:02:41]}  Bb7 {[%clk 0:02:43]} 16. Bc3 {[%clk 0:02:35]}  O-O {[%clk 0:02:41]} 17. Nd4 {[%clk 0:02:30]}  Rc8 {[%clk 0:02:34]} 18. Nb5 {[%clk 0:02:23]}  Na5 {[%clk 0:02:12]} 19. Nxa7 {[%clk 0:02:10]}  Bxg2 {[%clk 0:02:10]} 20. Nxc8 {[%clk 0:02:08]}  Qxc8 {[%clk 0:02:07]} 21. Kxg2 {[%clk 0:02:06]}  Qc6+ {[%clk 0:02:02]} 22. Kg1 {[%clk 0:02:04]}  f6 {[%clk 0:02:00]} 23. Bxa5 {[%clk 0:02:02]}  bxa5 {[%clk 0:02:01]} 24. Rc1 {[%clk 0:02:01]}  Qb6 {[%clk 0:02:01]} 25. Rc7 {[%clk 0:01:59]}  Rf7 {[%clk 0:01:59]} 26. Qd2 {[%clk 0:01:56]}  a4 {[%clk 0:01:51]} 27. Kg2 {[%clk 0:01:55]}  f5 {[%clk 0:01:29]} 28. e3 {[%clk 0:01:52]}  Nf6 {[%clk 0:01:11]} 29. Qd4 {[%clk 0:01:33]}  Qb5 {[%clk 0:01:07]} 30. Rfc1 {[%clk 0:01:24]}  Ne4 {[%clk 0:01:05]} 31. R1c2 {[%clk 0:01:17]}  Kh7 {[%clk 0:01:00]} 32. f3 {[%clk 0:01:10]}  Nf6 {[%clk 0:01:00]} 33. Qc4 {[%clk 0:01:05]}  Qb8 {[%clk 0:00:54]} 34. Qc5 {[%clk 0:00:57]}  Nd5 {[%clk 0:00:52]} 35. Rc8 {[%clk 0:00:53]}  Qb7 {[%clk 0:00:51]} 36. Kf2 {[%clk 0:00:49]}  Qa6 {[%clk 0:00:45]} 37. Rd2 {[%clk 0:00:41]}  Nf6 {[%clk 0:00:44]} 38. Rb8 {[%clk 0:00:37]}  Ne4+ {[%clk 0:00:32]} 39. fxe4 {[%clk 0:00:37]}  fxe4+ {[%clk 0:00:33]} 40. Kg2 {[%clk 0:00:35]}  Qf1+ {[%clk 0:00:32]} 41. Kh2 {[%clk 0:00:35]}  Rf2+ {[%clk 0:00:32]} 42. Rxf2 {[%clk 0:00:35]}  Qxf2+ {[%clk 0:00:33]} 43. Kh1 {[%clk 0:00:34]}  Qf1+ {[%clk 0:00:33]} 44. Kh2 {[%clk 0:00:35]}  Qf2+ {[%clk 0:00:34]} 45. Kh3 {[%clk 0:00:34]}  Qf1+ {[%clk 0:00:35]} 46. Kh2 {[%clk 0:00:34]}  Qf2+ {[%clk 0:00:35]} 1/2-1/2


[Site "https://www.chess.com"]

[Event "Titled Tuesday Blitz May 9 Early 2023"]
[White "Rakotomaharo, Fy Antenaina"]
[Black "Sarana, Alexey"]
[WhiteFideId "13100050"]
[BlackFideId "24133795"]
[WhiteElo "2427"]
[BlackElo "2714"]
[Result "0-1"]
[Round "10"]
[TimeControl "180+2"]
[Date "2023.05.09"]
[WhiteClock "0:00:03"]
[BlackClock "0:00:05"]

1. e4 {[%clk 0:03:00]}  e5 {[%clk 0:02:57]} 2. Nf3 {[%clk 0:03:00]}  Nc6 {[%clk 0:02:57]} 3. Bb5 {[%clk 0:03:01]}  a6 {[%clk 0:02:57]} 4. Ba4 {[%clk 0:03:01]}  Nge7 {[%clk 0:02:49]} 5. c3 {[%clk 0:03:00]}  d5 {[%clk 0:02:47]} 6. exd5 {[%clk 0:02:55]}  Qxd5 {[%clk 0:02:48]} 7. O-O {[%clk 0:02:41]}  Bg4 {[%clk 0:02:47]} 8. Bb3 {[%clk 0:02:30]}  Bxf3 {[%clk 0:02:47]} 9. Bxd5 {[%clk 0:02:28]}  Bxd1 {[%clk 0:02:47]} 10. Bxc6+ {[%clk 0:02:29]}  Nxc6 {[%clk 0:02:47]} 11. Rxd1 {[%clk 0:02:30]}  O-O-O {[%clk 0:02:46]} 12. d3 {[%clk 0:02:28]}  Bc5 {[%clk 0:02:45]} 13. Be3 {[%clk 0:02:28]}  Be7 {[%clk 0:02:37]} 14. Kf1 {[%clk 0:02:21]}  f5 {[%clk 0:02:35]} 15. Ke2 {[%clk 0:02:18]}  Rd7 {[%clk 0:02:33]} 16. Nd2 {[%clk 0:02:17]}  Rhd8 {[%clk 0:02:34]} 17. Nf3 {[%clk 0:02:12]}  Bf6 {[%clk 0:02:34]} 18. g3 {[%clk 0:02:03]}  b5 {[%clk 0:02:32]} 19. h4 {[%clk 0:02:03]}  h6 {[%clk 0:02:30]} 20. a4 {[%clk 0:02:00]}  Kb7 {[%clk 0:02:30]} 21. axb5 {[%clk 0:02:00]}  axb5 {[%clk 0:02:30]} 22. Bc5 {[%clk 0:01:59]}  Rd5 {[%clk 0:02:25]} 23. Be3 {[%clk 0:01:52]}  b4 {[%clk 0:02:18]} 24. h5 {[%clk 0:01:33]}  f4 {[%clk 0:02:12]} 25. gxf4 {[%clk 0:01:27]}  exf4 {[%clk 0:02:13]} 26. Bxf4 {[%clk 0:01:27]}  Rxh5 {[%clk 0:02:05]} 27. d4 {[%clk 0:01:24]}  Rb5 {[%clk 0:01:59]} 28. c4 {[%clk 0:01:19]}  Rf5 {[%clk 0:01:57]} 29. Be3 {[%clk 0:01:19]}  Na5 {[%clk 0:01:45]} 30. b3 {[%clk 0:01:04]}  Nxb3 {[%clk 0:01:23]} 31. Rab1 {[%clk 0:01:04]}  Na5 {[%clk 0:01:23]} 32. Rxb4+ {[%clk 0:01:04]}  Kc8 {[%clk 0:01:24]} 33. d5 {[%clk 0:01:00]}  Nb7 {[%clk 0:01:22]} 34. Nd4 {[%clk 0:00:51]}  Bxd4 {[%clk 0:01:22]} 35. Bxd4 {[%clk 0:00:51]}  Re8+ {[%clk 0:01:21]} 36. Kf1 {[%clk 0:00:46]}  g5 {[%clk 0:01:01]} 37. Rdb1 {[%clk 0:00:45]}  Nd8 {[%clk 0:01:00]} 38. Ra4 {[%clk 0:00:36]}  Re4 {[%clk 0:00:58]} 39. Bc5 {[%clk 0:00:28]}  Kd7 {[%clk 0:00:54]} 40. Rb8 {[%clk 0:00:24]}  Nf7 {[%clk 0:00:47]} 41. Rab4 {[%clk 0:00:19]}  g4 {[%clk 0:00:44]} 42. Kg2 {[%clk 0:00:17]}  Rff4 {[%clk 0:00:39]} 43. Rf8 {[%clk 0:00:14]}  h5 {[%clk 0:00:20]} 44. Be3 {[%clk 0:00:10]}  Rf3 {[%clk 0:00:18]} 45. Ba7 {[%clk 0:00:04]}  h4 {[%clk 0:00:18]} 46. Kg1 {[%clk 0:00:04]}  Re1+ {[%clk 0:00:16]} 47. Kg2 {[%clk 0:00:03]}  h3+ {[%clk 0:00:16]} 48. Kh2 {[%clk 0:00:04]}  Re4 {[%clk 0:00:16]} 49. Rg8 {[%clk 0:00:02]}  Ra3 {[%clk 0:00:10]} 50. Be3 {[%clk 0:00:02]}  Ne5 {[%clk 0:00:07]} 51. Rg7+ {[%clk 0:00:02]}  Kd6 {[%clk 0:00:07]} 52. c5+ {[%clk 0:00:01]}  Kxd5 {[%clk 0:00:07]} 53. Rxe4 {[%clk 0:00:01]}  Kxe4 {[%clk 0:00:08]} 54. Re7 {[%clk 0:00:01]}  c6 {[%clk 0:00:05]} 55. Kg3 {[%clk 0:00:02]}  Rd3 {[%clk 0:00:04]} 56. Re8 {[%clk 0:00:02]}  Rc3 {[%clk 0:00:04]} 57. Re7 {[%clk 0:00:02]}  Rc4 {[%clk 0:00:04]} 58. Re8 {[%clk 0:00:02]}  Kf5 {[%clk 0:00:05]} 59. Rf8+ {[%clk 0:00:02]}  Ke6 {[%clk 0:00:05]} 60. Re8+ {[%clk 0:00:02]}  Kf6 {[%clk 0:00:06]} 61. Rf8+ {[%clk 0:00:01]}  Ke7 {[%clk 0:00:06]} 62. Rh8 {[%clk 0:00:01]}  Rb4 {[%clk 0:00:04]} 63. Rh7+ {[%clk 0:00:02]}  Ke6 {[%clk 0:00:04]} 64. Rh6+ {[%clk 0:00:02]}  Kd5 {[%clk 0:00:04]} 65. Rh5 {[%clk 0:00:03]}  Rb3 {[%clk 0:00:05]} 66. Kh2 {[%clk 0:00:03]}  Ke4 {[%clk 0:00:05]} 67. Kg3 {[%clk 0:00:04]}  Rb1 {[%clk 0:00:05]} 68. Rh7 {[%clk 0:00:03]}  Rg1+ {[%clk 0:00:05]} 69. Kh2 {[%clk 0:00:03]}  Nf3# {[%clk 0:00:05]} 0-1


[Site "https://www.chess.com"]

[Event "Titled Tuesday Blitz May 9 Early 2023"]
[White "Leiva, Gianmarco"]
[Black "Costachi, Mihnea"]
[WhiteFideId "3804399"]
[BlackFideId "1217518"]
[WhiteElo "2365"]
[BlackElo "2456"]
[Result "0-1"]
[Round "10"]
[TimeControl "180+2"]
[Date "2023.05.09"]
[WhiteClock "0:00:00"]
[BlackClock "0:01:16"]

1. e4 {[%clk 0:03:00]}  e5 {[%clk 0:02:59]} 2. Nf3 {[%clk 0:03:01]}  Nc6 {[%clk 0:02:59]} 3. Bc4 {[%clk 0:03:01]}  Bc5 {[%clk 0:02:59]} 4. O-O {[%clk 0:03:01]}  d6 {[%clk 0:02:59]} 5. c3 {[%clk 0:03:02]}  Nf6 {[%clk 0:02:59]} 6. d3 {[%clk 0:03:02]}  h6 {[%clk 0:02:59]} 7. Bb3 {[%clk 0:03:00]}  a6 {[%clk 0:02:59]} 8. Re1 {[%clk 0:02:59]}  Ba7 {[%clk 0:02:59]} 9. d4 {[%clk 0:02:39]}  O-O {[%clk 0:02:58]} 10. h3 {[%clk 0:02:37]}  Re8 {[%clk 0:02:55]} 11. Bc2 {[%clk 0:02:37]}  Qe7 {[%clk 0:02:51]} 12. Be3 {[%clk 0:02:24]}  exd4 {[%clk 0:02:50]} 13. cxd4 {[%clk 0:02:24]}  Nb4 {[%clk 0:02:47]} 14. Nc3 {[%clk 0:02:18]}  Nxc2 {[%clk 0:02:46]} 15. Qxc2 {[%clk 0:02:18]}  Nxe4 {[%clk 0:02:42]} 16. d5 {[%clk 0:02:19]}  Nxc3 {[%clk 0:02:22]} 17. Qxc3 {[%clk 0:02:11]}  Qd8 {[%clk 0:02:07]} 18. Bxa7 {[%clk 0:01:55]}  Rxe1+ {[%clk 0:02:08]} 19. Rxe1 {[%clk 0:01:55]}  Rxa7 {[%clk 0:02:09]} 20. Qe3 {[%clk 0:01:53]}  Ra8 {[%clk 0:02:09]} 21. Qe8+ {[%clk 0:01:53]}  Qxe8 {[%clk 0:02:09]} 22. Rxe8+ {[%clk 0:01:54]}  Kh7 {[%clk 0:02:10]} 23. Nd4 {[%clk 0:01:33]}  b6 {[%clk 0:02:03]} 24. Re7 {[%clk 0:01:21]}  Bb7 {[%clk 0:02:01]} 25. Nc6 {[%clk 0:01:20]}  Bxc6 {[%clk 0:01:57]} 26. dxc6 {[%clk 0:01:20]}  Kg6 {[%clk 0:01:58]} 27. Rxc7 {[%clk 0:01:20]}  Kf6 {[%clk 0:01:56]} 28. Rb7 {[%clk 0:01:12]}  b5 {[%clk 0:01:56]} 29. c7 {[%clk 0:00:48]}  Rc8 {[%clk 0:01:55]} 30. Rb6 {[%clk 0:00:49]}  Ke6 {[%clk 0:01:55]} 31. Rxa6 {[%clk 0:00:49]}  Rxc7 {[%clk 0:01:56]} 32. Rb6 {[%clk 0:00:50]}  Rc5 {[%clk 0:01:53]} 33. a3 {[%clk 0:00:44]}  h5 {[%clk 0:01:50]} 34. g4 {[%clk 0:00:41]}  h4 {[%clk 0:01:48]} 35. Kg2 {[%clk 0:00:38]}  g5 {[%clk 0:01:46]} 36. Kf3 {[%clk 0:00:36]}  Re5 {[%clk 0:01:47]} 37. Rb7 {[%clk 0:00:33]}  f6 {[%clk 0:01:46]} 38. Kg2 {[%clk 0:00:31]}  Rd5 {[%clk 0:01:44]} 39. Kf1 {[%clk 0:00:28]}  Ke5 {[%clk 0:01:37]} 40. Ke2 {[%clk 0:00:28]}  Kf4 {[%clk 0:01:33]} 41. Rf7 {[%clk 0:00:20]}  Ke5 {[%clk 0:01:33]} 42. Re7+ {[%clk 0:00:19]}  Kd4 {[%clk 0:01:33]} 43. Rf7 {[%clk 0:00:17]}  Re5+ {[%clk 0:01:34]} 44. Kf3 {[%clk 0:00:16]}  Re6 {[%clk 0:01:33]} 45. Rb7 {[%clk 0:00:15]}  Kc4 {[%clk 0:01:33]} 46. Rb6 {[%clk 0:00:09]}  Kc5 {[%clk 0:01:33]} 47. Rb8 {[%clk 0:00:09]}  d5 {[%clk 0:01:34]} 48. Rc8+ {[%clk 0:00:07]}  Kd4 {[%clk 0:01:29]} 49. Rb8 {[%clk 0:00:07]}  Kc4 {[%clk 0:01:29]} 50. Rc8+ {[%clk 0:00:07]}  Kb3 {[%clk 0:01:28]} 51. Rc5 {[%clk 0:00:08]}  d4 {[%clk 0:01:17]} 52. Rxb5+ {[%clk 0:00:08]}  Kc2 {[%clk 0:01:18]} 53. Rc5+ {[%clk 0:00:02]}  Kxb2 {[%clk 0:01:17]} 54. a4 {[%clk 0:00:02]}  d3 {[%clk 0:01:18]} 55. Rd5 {[%clk 0:00:02]}  Kc2 {[%clk 0:01:18]} 56. a5 {[%clk 0:00:02]}  Re5 {[%clk 0:01:14]} 57. Rxe5 {[%clk 0:00:01]}  fxe5 {[%clk 0:01:15]} 58. a6 {[%clk 0:00:01]}  d2 {[%clk 0:01:15]} 59. a7 {[%clk 0:00:00]}  d1=Q+ {[%clk 0:01:16]} 0-1


[Site "https://www.chess.com"]

[Event "Titled Tuesday Blitz May 9 Early 2023"]
[White "Martinez Ramirez, Lennis"]
[Black "Bacrot, Etienne"]
[WhiteFideId "3509079"]
[BlackFideId "605506"]
[WhiteElo "2410"]
[BlackElo "2672"]
[Result "1-0"]
[Round "10"]
[TimeControl "180+2"]
[Date "2023.05.09"]
[WhiteClock "0:00:04"]
[BlackClock "0:00:01"]

1. c4 {[%clk 0:03:00]}  c5 {[%clk 0:02:59]} 2. Nc3 {[%clk 0:02:59]}  Nc6 {[%clk 0:02:59]} 3. g3 {[%clk 0:03:00]}  g6 {[%clk 0:03:00]} 4. Bg2 {[%clk 0:03:00]}  Bg7 {[%clk 0:03:01]} 5. a3 {[%clk 0:03:00]}  d6 {[%clk 0:02:58]} 6. Rb1 {[%clk 0:02:59]}  Nf6 {[%clk 0:02:52]} 7. e3 {[%clk 0:02:59]}  Bg4 {[%clk 0:02:40]} 8. Nge2 {[%clk 0:02:53]}  O-O {[%clk 0:02:36]} 9. O-O {[%clk 0:02:50]}  Qd7 {[%clk 0:02:36]} 10. d4 {[%clk 0:02:34]}  Bh3 {[%clk 0:02:07]} 11. dxc5 {[%clk 0:02:14]}  Bxg2 {[%clk 0:02:06]} 12. Kxg2 {[%clk 0:02:13]}  dxc5 {[%clk 0:02:06]} 13. Qxd7 {[%clk 0:02:10]}  Nxd7 {[%clk 0:02:06]} 14. e4 {[%clk 0:01:59]}  Rfd8 {[%clk 0:01:53]} 15. Bg5 {[%clk 0:01:52]}  Nde5 {[%clk 0:01:42]} 16. b3 {[%clk 0:01:40]}  h6 {[%clk 0:01:31]} 17. Bf4 {[%clk 0:01:31]}  Rd3 {[%clk 0:01:22]} 18. Rfd1 {[%clk 0:01:30]}  Rad8 {[%clk 0:01:22]} 19. Rxd3 {[%clk 0:01:29]}  Nxd3 {[%clk 0:01:09]} 20. Be3 {[%clk 0:01:24]}  Nd4 {[%clk 0:01:09]} 21. Bxd4 {[%clk 0:01:18]}  cxd4 {[%clk 0:01:08]} 22. Na4 {[%clk 0:00:20]}  Ne5 {[%clk 0:01:02]} 23. Rd1 {[%clk 0:00:19]}  d3 {[%clk 0:01:00]} 24. Nf4 {[%clk 0:00:19]}  b6 {[%clk 0:00:50]} 25. f3 {[%clk 0:00:18]}  e6 {[%clk 0:00:31]} 26. Kf2 {[%clk 0:00:18]}  Rc8 {[%clk 0:00:28]} 27. Nxd3 {[%clk 0:00:16]}  Nc6 {[%clk 0:00:21]} 28. Nb4 {[%clk 0:00:15]}  Na5 {[%clk 0:00:21]} 29. Rd3 {[%clk 0:00:14]}  Bf8 {[%clk 0:00:20]} 30. Nc2 {[%clk 0:00:13]}  Nxc4 {[%clk 0:00:19]} 31. bxc4 {[%clk 0:00:12]}  Rxc4 {[%clk 0:00:19]} 32. Nc3 {[%clk 0:00:06]}  Bg7 {[%clk 0:00:19]} 33. Ne3 {[%clk 0:00:04]}  Rxc3 {[%clk 0:00:19]} 34. Rxc3 {[%clk 0:00:04]}  Bxc3 {[%clk 0:00:19]} 35. Ke2 {[%clk 0:00:04]}  Bd4 {[%clk 0:00:17]} 36. Nc2 {[%clk 0:00:04]}  Bc5 {[%clk 0:00:17]} 37. Kd3 {[%clk 0:00:03]}  Kf8 {[%clk 0:00:17]} 38. h3 {[%clk 0:00:04]}  Ke7 {[%clk 0:00:18]} 39. Kc4 {[%clk 0:00:04]}  a6 {[%clk 0:00:18]} 40. a4 {[%clk 0:00:04]}  Kd6 {[%clk 0:00:18]} 41. Kd3 {[%clk 0:00:04]}  Bf2 {[%clk 0:00:18]} 42. g4 {[%clk 0:00:04]}  Ke5 {[%clk 0:00:17]} 43. Ke2 {[%clk 0:00:04]}  Bc5 {[%clk 0:00:17]} 44. Ne1 {[%clk 0:00:04]}  Kd4 {[%clk 0:00:17]} 45. Nd3 {[%clk 0:00:04]}  Bd6 {[%clk 0:00:15]} 46. Kd2 {[%clk 0:00:04]}  Kc4 {[%clk 0:00:15]} 47. Kc2 {[%clk 0:00:03]}  g5 {[%clk 0:00:13]} 48. e5 {[%clk 0:00:01]}  Be7 {[%clk 0:00:12]} 49. Nf2 {[%clk 0:00:01]}  Kb4 {[%clk 0:00:11]} 50. Ne4 {[%clk 0:00:02]}  Kxa4 {[%clk 0:00:10]} 51. Nf6 {[%clk 0:00:02]}  Bxf6 {[%clk 0:00:10]} 52. exf6 {[%clk 0:00:03]}  Ka3 {[%clk 0:00:07]} 53. f4 {[%clk 0:00:04]}  gxf4 {[%clk 0:00:05]} 54. h4 {[%clk 0:00:03]}  b5 {[%clk 0:00:05]} 55. g5 {[%clk 0:00:02]}  b4 {[%clk 0:00:06]} 56. g6 {[%clk 0:00:02]}  b3+ {[%clk 0:00:06]} 57. Kc3 {[%clk 0:00:02]}  f3 {[%clk 0:00:06]} 58. gxf7 {[%clk 0:00:02]}  b2 {[%clk 0:00:04]} 59. f8=Q+ {[%clk 0:00:03]}  Ka2 {[%clk 0:00:04]} 60. Qb4 {[%clk 0:00:03]}  b1=Q {[%clk 0:00:01]} 61. Qa4# {[%clk 0:00:04]} 1-0


[Site "https://www.chess.com"]